fUST/lending_fUST_20250430
["ID","MTS","AMOUNT","RATE_DAILY","PERIOD"]
[359382192,1745965648510,-400.0,0.00027553,2]
[359382193,1745965648532,-400.0,0.00027553,2]
[359382194,1745965648554,-400.0,0.00027553,2]
[359382195,1745965648576,-400.0,0.00027553,2]
[359382196,1745965648597,-418.65,0.00027553,2]
[359382197,1745965648618,-478.04,0.00027553,2]
[359382198,1745965648640,-1201.0,0.00027553,2]
[359382199,1745965648662,-400.0,0.00027553,2]
[359382200,1745965648684,-1222.28,0.00027553,2]
[359382201,1745965648705,-400.0,0.00027553,2]
[359382202,1745965648726,-400.0,0.00027553,2]
[359382203,1745965648750,-2232.22,0.00027553,2]
[359382204,1745965648770,-400.0,0.00027553,2]
[359382205,1745965648792,-400.0,0.00027553,2]
[359382206,1745965648818,-2263.58,0.00027553,2]
[359382207,1745965648840,-400.0,0.00027553,2]
[359382208,1745965648863,-400.0,0.00027553,2]
[359382209,1745965648885,-574.78,0.00027553,2]
[359382210,1745965648908,-463.14,0.00027553,2]
[359382211,1745965648930,-400.0,0.00027553,2]
[359382212,1745965648952,-963.49,0.00027553,2]
[359382213,1745965648973,-400.0,0.00027553,2]
[359382214,1745965648995,-1295.0,0.00027553,2]
[359382215,1745965649016,-400.0,0.00027553,2]
[359382216,1745965649037,-1251.9,0.00027553,2]
[359382217,1745965649059,-400.0,0.00027553,2]
[359382218,1745965649080,-500.0,0.00027553,2]
[359382219,1745965649101,-465.12,0.00027553,2]
[359382220,1745965649123,-400.0,0.00027553,2]
[359382221,1745965649145,-400.0,0.00027553,2]
[359382222,1745965649166,-494.28396453,0.00027553,2]
[359382223,1745965649187,-400.0,0.00027553,2]
[359382224,1745965649209,-806.81,0.00027553,2]
[359382225,1745965649230,-400.0,0.00027553,2]
[359382226,1745965649251,-458.44,0.00027553,2]
[359382227,1745965649481,-1387.62,0.00027553,2]
[359382228,1745965649505,-1622.08,0.00027553,2]
[359382229,1745965649528,-1459.34,0.00027553,2]
[359382230,1745965649553,-211.52829867,0.00027553,2]
[359382231,1745965649575,-400.0,0.00027553,2]
[359382232,1745965649597,-400.0,0.00027553,2]
[359382233,1745965649619,-574.24,0.00027553,2]
[359382234,1745965649640,-400.0,0.00027553,2]
[359382235,1745965649662,-400.0,0.00027553,2]
[359382236,1745965649685,-451.9,0.00027553,2]
[359382237,1745965649708,-400.0,0.00027553,2]
[359382238,1745965649732,-400.0,0.00027553,2]
[359382239,1745965649759,-400.0,0.00027553,2]
[359382240,1745965649785,-400.0,0.00027553,2]
[359382241,1745965649808,-400.0,0.00027553,2]
[359382242,1745965649833,-410.61,0.00027553,2]
[359382243,1745965649855,-400.0,0.00027553,2]
[359382244,1745965649877,-400.0,0.00027553,2]
[359382245,1745965649899,-404.79296985,0.00027553,2]
[359382249,1745965717420,-225.23626718,0.00025,7]
[359382253,1745965720825,-249.19760198,0.00025,7]
[359382255,1745965725351,-559.98301894,0.00025,7]
[359382293,1745965831726,-240.827659,0.00026226,2]
[359382295,1745965831737,-199.7262,0.00026337,2]
[359382297,1745965831746,-472.962603,0.00026338,2]
[359382299,1745965831756,-257.952041,0.00027068,4]
[359382301,1745965831766,-451.2139983,0.00027297,2]
[359382302,1745965831777,-300.0,0.00027372,2]
[359382304,1745965831788,-1200.0,0.00027372,2]
[359382306,1745965831800,-500.0,0.00027373,2]
[359382308,1745965831810,-350.67141357,0.00027373,2]
[359382327,1745965834130,-149.32858643,0.00027373,2]
[359382328,1745965834140,-500.0,0.00027373,2]
[359382329,1745965834150,-500.0,0.00027373,2]
[359382330,1745965834161,-400.0,0.00027397,2]
[359382331,1745965834171,-774.0,0.00027397,2]
[359382332,1745965834180,-1191.57,0.00027397,2]
[359382333,1745965834190,-948.03,0.00027397,2]
[359382334,1745965834199,-162.05444157,0.00027397,2]
[359382335,1745965834211,-237.94555843,0.00027397,2]
[359382336,1745965834222,-1212.7,0.00027397,2]
[359382337,1745965834231,-829.03,0.00027397,2]
[359382338,1745965834241,-618.67,0.00027397,2]
[359382339,1745965834251,-2209.47,0.00027397,2]
[359382340,1745965834261,-400.0,0.00027397,2]
[359382341,1745965834271,-779.7,0.00027397,2]
[359382342,1745965834280,-400.0,0.00027397,2]
[359382343,1745965834291,-400.0,0.00027397,2]
[359382344,1745965834300,-574.83,0.00027397,2]
[359382345,1745965834310,-400.0,0.00027397,2]
[359382346,1745965834320,-1051.35,0.00027397,2]
[359382347,1745965834330,-2169.26,0.00027397,2]
[359382348,1745965834339,-400.0,0.00027397,2]
[359382349,1745965834348,-400.0,0.00027397,2]
[359382350,1745965834358,-400.0,0.00027397,2]
[359382351,1745965834367,-817.36,0.00027397,2]
[359382352,1745965834377,-962.08,0.00027397,2]
[359382353,1745965834387,-776.26,0.00027397,2]
[359382354,1745965834396,-400.0,0.00027397,2]
[359382355,1745965834407,-200.0,0.00027397,2]
[359382356,1745965834416,-400.0,0.00027397,2]
[359382357,1745965834426,-400.0,0.00027397,2]
[359382358,1745965834436,-400.0,0.00027397,2]
[359382359,1745965834446,-2082.61,0.00027397,2]
[359382360,1745965834456,-400.0,0.00027397,2]
[359382361,1745965834466,-400.0,0.00027397,2]
[359382362,1745965834476,-1118.47,0.00027397,2]
[359382363,1745965834486,-2991.06,0.00027397,2]
[359382364,1745965834496,-2334.65,0.00027397,2]
[359382365,1745965834505,-400.0,0.00027397,2]
[359382366,1745965834515,-439.33,0.00027397,2]
[359382367,1745965834525,-400.0,0.00027397,2]
[359382368,1745965834535,-436.46,0.00027397,2]
[359382369,1745965834545,-400.0,0.00027397,2]
[359382370,1745965834555,-400.0,0.00027397,2]
[359382371,1745965834565,-400.0,0.00027397,2]
[359382372,1745965834575,-1554.49,0.00027397,2]
[359382373,1745965834585,-1199.73,0.00027397,2]
[359382374,1745965834595,-400.0,0.00027397,2]
[359382375,1745965834606,-2606.96,0.00027397,2]
[359382376,1745965834616,-400.0,0.00027397,2]
[359382377,1745965834626,-400.0,0.00027397,2]
[359382378,1745965834637,-550.32,0.00027397,2]
[359382379,1745965834647,-400.0,0.00027397,2]
[359382380,1745965834656,-400.0,0.00027397,2]
[359382381,1745965834666,-1329.8,0.00027397,2]
[359382382,1745965834676,-5657.09,0.00027397,2]
[359382383,1745965834686,-400.0,0.00027397,2]
[359382384,1745965834696,-400.0,0.00027397,2]
[359382385,1745965834706,-2328.55,0.00027397,2]
[359382386,1745965834716,-500.0,0.00027397,2]
[359382387,1745965834726,-400.0,0.00027397,2]
[359382388,1745965834735,-1398.53,0.00027397,2]
[359382389,1745965834747,-516.76,0.00027397,2]
[359382390,1745965834756,-400.0,0.00027397,2]
[359382391,1745965834766,-400.0,0.00027397,2]
[359382392,1745965834776,-859.03703015,0.00027553,2]
[359382393,1745965834786,-400.0,0.00027553,2]
[359382394,1745965834798,-400.0,0.00027553,2]
[359382395,1745965834808,-400.0,0.00027553,2]
[359382396,1745965834818,-400.0,0.00027553,2]
[359382397,1745965834827,-400.0,0.00027553,2]
[359382398,1745965834837,-400.0,0.00027553,2]
[359382399,1745965834847,-453.97,0.00027553,2]
[359382400,1745965834856,-1383.41,0.00027553,2]
[359382401,1745965834866,-400.0,0.00027553,2]
[359382402,1745965834875,-512.01,0.00027553,2]
[359382403,1745965834885,-400.0,0.00027553,2]
[359382404,1745965834895,-728.24,0.00027553,2]
[359382405,1745965834905,-400.0,0.00027553,2]
[359382406,1745965834915,-400.0,0.00027553,2]
[359382407,1745965834925,-1422.9,0.00027553,2]
[359382408,1745965834934,-2294.8,0.00027553,2]
[359382409,1745965834944,-409.84,0.00027553,2]
[359382410,1745965834954,-937.84,0.00027553,2]
[359382411,1745965834966,-1024.45,0.00027553,2]
[359382412,1745965834976,-2784.61,0.00027553,2]
[359382413,1745965834986,-501.16,0.00027553,2]
[359382414,1745965834996,-1202.0,0.00027553,2]
[359382415,1745965835005,-719.18,0.00027553,2]
[359382416,1745965835160,-1358.32,0.00027553,2]
[359382417,1745965835170,-4215.29,0.00027553,2]
[359382418,1745965835180,-489.54,0.00027553,2]
[359382419,1745965835190,-314.46164946,0.00027571,2]
[359382420,1745965835200,-359.17,0.00027661,3]
[359382421,1745965835210,-441.95238376,0.0002767,2]
[359382422,1745965835220,-400.0,0.0002767,2]
[359382423,1745965835230,-531.92130106,0.0002767,2]
[359382424,1745965835239,-503.12833937,0.0002767,2]
[359382425,1745965835249,-400.0,0.0002767,2]
[359382426,1745965835258,-400.0,0.0002767,2]
[359382427,1745965835268,-400.0,0.0002767,2]
[359382428,1745965835277,-400.0,0.00027671,2]
[359382429,1745965835287,-400.0,0.00027671,2]
[359382430,1745965835296,-400.0,0.00027671,2]
[359382431,1745965835306,-400.0,0.00027671,2]
[359382432,1745965835315,-451.98,0.00027671,2]
[359382433,1745965835325,-400.0,0.00027671,2]
[359382434,1745965835335,-400.0,0.00027671,2]
[359382435,1745965835344,-245.52552531,0.00027671,2]
[359382436,1745965835354,-500.0,0.00027671,2]
[359382437,1745965835364,-330.29247157,0.00027671,2]
[359382438,1745965835521,-69.70752843,0.00027671,2]
[359382439,1745965835531,-438.8,0.00027671,2]
[359382440,1745965835540,-400.0,0.00027671,2]
[359382441,1745965835551,-400.0,0.00027671,2]
[359382442,1745965835560,-400.0,0.00027671,2]
[359382443,1745965835573,-400.0,0.00027671,2]
[359382444,1745965835583,-487.76,0.00027671,2]
[359382445,1745965835594,-400.0,0.00027671,2]
[359382446,1745965835604,-616.52,0.00027671,2]
[359382447,1745965835615,-757.11,0.00027671,2]
[359382448,1745965835624,-400.0,0.00027671,2]
[359382449,1745965835634,-400.0,0.00027671,2]
[359382450,1745965835643,-599.52,0.00027671,2]
[359382451,1745965835654,-400.0,0.00027671,2]
[359382452,1745965835664,-400.0,0.00027671,2]
[359382453,1745965835673,-400.0,0.00027671,2]
[359382454,1745965835683,-400.0,0.00027671,2]
[359382455,1745965835693,-400.0,0.00027671,2]
[359382456,1745965835703,-400.0,0.00027671,2]
[359382457,1745965835712,-319.55208433,0.00027671,2]
[359382458,1745965835725,-80.44791567,0.00027671,2]
[359382459,1745965835734,-354.44653912,0.00027671,2]
[359382478,1745965837890,-521.30136521,0.00027397,2]
[359382479,1745965837900,-400.0,0.00027553,2]
[359382480,1745965837910,-45.55346088,0.00027671,2]
[359382481,1745965837919,-1130.55,0.00027671,2]
[359382482,1745965837929,-400.0,0.00027671,2]
[359382483,1745965837939,-267.86596552,0.00027671,2]
[359382484,1745965837951,-603.83403448,0.00027671,2]
[359382485,1745965837960,-400.0,0.00027671,2]
[359382486,1745965837969,-400.0,0.00027671,2]
[359382487,1745965837979,-400.0,0.00027671,2]
[359382488,1745965837988,-400.0,0.00027671,2]
[359382490,1745965837997,-400.0,0.00027671,2]
[359382492,1745965838007,-2618.11,0.00027671,2]
[359382493,1745965838017,-400.0,0.00027671,2]
[359382494,1745965838027,-418.78,0.00027671,2]
[359382495,1745965838036,-400.0,0.00027671,2]
[359382497,1745965838045,-98.54314095,0.00027671,2]
[359382498,1745965838057,-301.45685905,0.00027671,2]
[359382499,1745965838066,-698.54314095,0.00027671,2]
[359382500,1745965838078,-235.46685905,0.00027671,2]
[359382501,1745965838088,-400.0,0.00027671,2]
[359382502,1745965838097,-400.0,0.00027671,2]
[359382503,1745965838107,-400.0,0.00027671,2]
[359382504,1745965838116,-1118.61,0.00027671,2]
[359382505,1745965838126,-405.75,0.00027671,2]
[359382506,1745965838135,-400.0,0.00027671,2]
[359382507,1745965838147,-400.0,0.00027671,2]
[359382508,1745965838156,-730.98,0.00027671,2]
[359382509,1745965838166,-400.0,0.00027671,2]
[359382510,1745965838175,-400.0,0.00027671,2]
[359382511,1745965838185,-400.0,0.00027671,2]
[359382512,1745965838197,-400.0,0.00027671,2]
[359382513,1745965838207,-566.98,0.00027671,2]
[359382514,1745965838218,-400.0,0.00027671,2]
[359382515,1745965838228,-893.77,0.00027671,2]
[359382516,1745965838238,-731.76,0.00027671,2]
[359382517,1745965838249,-400.0,0.00027671,2]
[359382518,1745965838260,-1540.24,0.00027671,2]
[359382519,1745965838270,-1275.51,0.00027671,2]
[359382520,1745965838279,-171.21497943,0.00027671,2]
[359382521,1745965838288,-445.84,0.00027671,2]
[359382522,1745965838297,-400.0,0.00027671,2]
[359382523,1745965838307,-1753.72,0.00027671,2]
[359382524,1745965838316,-436.66,0.00027671,2]
[359382525,1745965838326,-445.02,0.00027671,2]
[359382526,1745965838336,-672.19,0.00027671,2]
[359382527,1745965838347,-1367.8,0.00027671,2]
[359382528,1745965838355,-400.0,0.00027671,2]
[359382529,1745965838365,-1033.02,0.00027671,2]
[359382530,1745965838374,-743.45,0.00027671,2]
[359382531,1745965838383,-713.45,0.00027671,2]
[359382532,1745965838394,-3764.84,0.00027671,2]
[359382533,1745965838404,-402.04,0.00027671,2]
[359382534,1745965838414,-3094.27,0.00027671,2]
[359382535,1745965838424,-400.0,0.00027671,2]
[359382536,1745965838434,-400.0,0.00027671,2]
[359382537,1745965838444,-417.66,0.00027671,2]
[359382538,1745965838453,-400.0,0.00027671,2]
[359382539,1745965838463,-400.0,0.00027671,2]
[359382540,1745965838472,-774.0,0.00027671,2]
[359382541,1745965838482,-1191.57,0.00027671,2]
[359382542,1745965838491,-948.03,0.00027671,2]
[359382543,1745965838501,-400.0,0.00027671,2]
[359382544,1745965838510,-1212.7,0.00027671,2]
[359382545,1745965838520,-829.03,0.00027671,2]
[359382546,1745965838529,-618.67,0.00027671,2]
[359382547,1745965838539,-2209.47,0.00027671,2]
[359382548,1745965838548,-400.0,0.00027671,2]
[359382549,1745965838558,-779.7,0.00027671,2]
[359382550,1745965838568,-400.0,0.00027671,2]
[359382551,1745965838579,-400.0,0.00027671,2]
[359382552,1745965838589,-574.83,0.00027671,2]
[359382553,1745965838599,-289.98,0.00027671,2]
[359382554,1745965838608,-1051.35,0.00027671,2]
[359382555,1745965838618,-2169.26,0.00027671,2]
[359382556,1745965838628,-400.0,0.00027671,2]
[359382557,1745965838639,-400.0,0.00027671,2]
[359382558,1745965838648,-400.0,0.00027671,2]
[359382559,1745965838658,-817.36,0.00027671,2]
[359382560,1745965838667,-962.08,0.00027671,2]
[359382561,1745965838677,-776.26,0.00027671,2]
[359382562,1745965838687,-400.0,0.00027671,2]
[359382563,1745965838700,-400.0,0.00027671,2]
[359382564,1745965838709,-400.0,0.00027671,2]
[359382565,1745965838719,-400.0,0.00027671,2]
[359382566,1745965838729,-2082.61,0.00027671,2]
[359382567,1745965838738,-400.0,0.00027671,2]
[359382568,1745965838748,-400.0,0.00027671,2]
[359382569,1745965838757,-1118.47,0.00027671,2]
[359382570,1745965838767,-2991.06,0.00027671,2]
[359382571,1745965838777,-2334.65,0.00027671,2]
[359382572,1745965838786,-400.0,0.00027671,2]
[359382573,1745965838797,-439.33,0.00027671,2]
[359382574,1745965838806,-400.0,0.00027671,2]
[359382575,1745965838815,-436.46,0.00027671,2]
[359382576,1745965838824,-400.0,0.00027671,2]
[359382577,1745965838834,-400.0,0.00027671,2]
[359382578,1745965838844,-1554.49,0.00027671,2]
[359382579,1745965838856,-1199.73,0.00027671,2]
[359382580,1745965838871,-400.0,0.00027671,2]
[359382581,1745965838881,-2606.96,0.00027671,2]
[359382582,1745965838892,-400.0,0.00027671,2]
[359382583,1745965838902,-550.32,0.00027671,2]
[359382584,1745965838911,-400.0,0.00027671,2]
[359382585,1745965838920,-1329.8,0.00027671,2]
[359382586,1745965838930,-5657.09,0.00027671,2]
[359382587,1745965838940,-300.0,0.00027671,2]
[359382588,1745965838950,-2328.55,0.00027671,2]
[359382589,1745965838961,-300.0,0.00027671,2]
[359382590,1745965838970,-1398.53,0.00027671,2]
[359382591,1745965838979,-516.76,0.00027671,2]
[359382592,1745965838988,-400.0,0.00027671,2]
[359382593,1745965838998,-400.0,0.00027671,2]
[359382594,1745965839011,-500.0,0.00027673,5]
[359382595,1745965839020,-314.46164946,0.00027708,2]
[359382596,1745965839030,-163.82241722,0.000278,2]
[359382597,1745965839039,-400.0,0.00027827,2]
[359382598,1745965839049,-400.0,0.00027827,2]
[359382599,1745965839059,-400.0,0.00027827,2]
[359382600,1745965839069,-400.0,0.00027827,2]
[359382601,1745965839078,-418.65,0.00027827,2]
[359382602,1745965839088,-478.04,0.00027827,2]
[359382603,1745965839098,-400.0,0.00027827,2]
[359382604,1745965839108,-400.0,0.00027827,2]
[359382605,1745965839120,-400.0,0.00027827,2]
[359382606,1745965839132,-400.0,0.00027827,2]
[359382607,1745965839143,-463.14,0.00027827,2]
[359382608,1745965839153,-963.49,0.00027827,2]
[359382609,1745965839162,-400.0,0.00027827,2]
[359382610,1745965839171,-400.0,0.00027827,2]
[359382611,1745965839180,-465.12,0.00027827,2]
[359382612,1745965839189,-400.0,0.00027827,2]
[359382613,1745965839198,-806.81,0.00027827,2]
[359382614,1745965839207,-400.0,0.00027827,2]
[359382615,1745965839216,-400.0,0.00027827,2]
[359382616,1745965839225,-400.0,0.00027827,2]
[359382617,1745965839240,-451.9,0.00027827,2]
[359382618,1745965839249,-400.0,0.00027827,2]
[359382619,1745965839259,-400.0,0.00027827,2]
[359382620,1745965839267,-400.0,0.00027827,2]
[359382621,1745965839276,-400.0,0.00027827,2]
[359382622,1745965839286,-195.55742812,0.00027827,2]
[359382623,1745965839295,-410.61,0.00027827,2]
[359382624,1745965839304,-400.0,0.00027827,2]
[359382625,1745965839313,-1263.83,0.00027827,2]
[359382626,1745965839322,-489.04,0.00027827,2]
[359382627,1745965839331,-400.0,0.00027827,2]
[359382629,1745965839340,-400.0,0.00027827,2]
[359382630,1745965839349,-400.0,0.00027827,2]
[359382632,1745965839359,-400.0,0.00027827,2]
[359382634,1745965839368,-400.0,0.00027827,2]
[359382636,1745965839377,-453.97,0.00027827,2]
[359382637,1745965839386,-1383.41,0.00027827,2]
[359382639,1745965839397,-400.0,0.00027827,2]
[359382641,1745965839406,-512.01,0.00027827,2]
[359382643,1745965839416,-400.0,0.00027827,2]
[359382644,1745965839426,-728.24,0.00027827,2]
[359382646,1745965839435,-400.0,0.00027827,2]
[359382648,1745965839445,-400.0,0.00027827,2]
[359382650,1745965839454,-1422.9,0.00027827,2]
[359382651,1745965839463,-2294.8,0.00027827,2]
[359382653,1745965839473,-409.84,0.00027827,2]
[359382654,1745965839482,-937.84,0.00027827,2]
[359382655,1745965839491,-1024.45,0.00027827,2]
[359382656,1745965839500,-2784.61,0.00027827,2]
[359382657,1745965839510,-501.16,0.00027827,2]
[359382658,1745965839520,-1202.0,0.00027827,2]
[359382659,1745965839530,-719.18,0.00027827,2]
[359382661,1745965839539,-1358.32,0.00027827,2]
[359382662,1745965839549,-4215.29,0.00027827,2]
[359382665,1745965839559,-489.54,0.00027827,2]
[359382668,1745965839569,-400.0,0.00027827,2]
[359382670,1745965839580,-314.46164946,0.00027845,2]
[359382672,1745965839590,-2596.53974532,0.000279,7]
[359382674,1745965839600,-479.2031078,0.00027944,2]
[359382676,1745965839610,-400.0,0.00027944,2]
[359382678,1745965839619,-400.0,0.00027944,2]
[359382680,1745965839629,-400.0,0.00027945,2]
[359382682,1745965839639,-400.0,0.00027945,2]
[359382684,1745965839650,-400.0,0.00027945,2]
[359382686,1745965839659,-440.05153152,0.00027945,2]
[359382688,1745965839669,-400.0,0.00027945,2]
[359382690,1745965839679,-451.98,0.00027945,2]
[359382692,1745965839689,-400.0,0.00027945,2]
[359382694,1745965839698,-400.0,0.00027945,2]
[359382696,1745965839708,-400.0,0.00027945,2]
[359382697,1745965839718,-438.8,0.00027945,2]
[359382699,1745965839727,-400.0,0.00027945,2]
[359382702,1745965839737,-400.0,0.00027945,2]
[359382703,1745965839747,-400.0,0.00027945,2]
[359382706,1745965839759,-400.0,0.00027945,2]
[359382708,1745965839769,-487.76,0.00027945,2]
[359382709,1745965839780,-400.0,0.00027945,2]
[359382711,1745965839789,-616.52,0.00027945,2]
[359382713,1745965839802,-757.11,0.00027945,2]
[359382715,1745965839811,-400.0,0.00027945,2]
[359382717,1745965839821,-599.52,0.00027945,2]
[359382719,1745965839831,-400.0,0.00027945,2]
[359382721,1745965839841,-400.0,0.00027945,2]
[359382723,1745965839851,-436.54863168,0.00027945,2]
[359382725,1745965839861,-400.0,0.00027945,2]
[359382727,1745965839872,-400.0,0.00027945,2]
[359382728,1745965839882,-400.0,0.00027945,2]
[359382731,1745965839891,-400.0,0.00027945,2]
[359382732,1745965839901,-1130.55,0.00027945,2]
[359382734,1745965839911,-400.0,0.00027945,2]
[359382736,1745965839920,-871.7,0.00027945,2]
[359382738,1745965839930,-400.0,0.00027945,2]
[359382740,1745965839939,-400.0,0.00027945,2]
[359382742,1745965839950,-400.0,0.00027945,2]
[359382745,1745965839960,-400.0,0.00027945,2]
[359382747,1745965839970,-400.0,0.00027945,2]
[359382749,1745965839979,-2618.11,0.00027945,2]
[359382751,1745965839988,-400.0,0.00027945,2]
[359382753,1745965839998,-418.78,0.00027945,2]
[359382755,1745965840007,-400.0,0.00027945,2]
[359382757,1745965840017,-400.0,0.00027945,2]
[359382759,1745965840026,-934.01,0.00027945,2]
[359382761,1745965840035,-400.0,0.00027945,2]
[359382763,1745965840045,-400.0,0.00027945,2]
[359382765,1745965840054,-151.0,0.00027945,7]
[359382767,1745965840063,-151.0,0.00027945,7]
[359382769,1745965840072,-400.0,0.00027945,2]
[359382771,1745965840081,-170.648995,0.00027945,7]
[359382773,1745965840091,-1118.61,0.00027945,2]
[359382775,1745965840100,-405.75,0.00027945,2]
[359382777,1745965840110,-151.0,0.00027945,7]
[359382780,1745965840120,-400.0,0.00027945,2]
[359382783,1745965840129,-400.0,0.00027945,2]
[359382785,1745965840138,-730.98,0.00027945,2]
[359382787,1745965840149,-151.0,0.00027945,7]
[359382789,1745965840160,-400.0,0.00027945,2]
[359382791,1745965840170,-400.0,0.00027945,2]
[359382792,1745965840179,-182.727176,0.00027945,7]
[359382795,1745965840189,-151.0,0.00027945,7]
[359382797,1745965840198,-400.0,0.00027945,2]
[359382814,1745965840356,-400.0,0.00027945,2]
[359382816,1745965840366,-566.98,0.00027945,2]
[359382819,1745965840376,-400.0,0.00027945,2]
[359382821,1745965840386,-893.77,0.00027945,2]
[359382823,1745965840396,-151.0,0.00027945,7]
[359382825,1745965840406,-731.76,0.00027945,2]
[359382827,1745965840415,-400.0,0.00027945,2]
[359382829,1745965840425,-1540.24,0.00027945,2]
[359382830,1745965840435,-1275.51,0.00027945,2]
[359382833,1745965840445,-151.0,0.00027945,2]
[359382834,1745965840455,-445.84,0.00027945,2]
[359382835,1745965840464,-400.0,0.00027945,2]
[359382836,1745965840474,-1753.72,0.00027945,2]
[359382837,1745965840484,-436.66,0.00027945,2]
[359382838,1745965840494,-445.02,0.00027945,2]
[359382839,1745965840503,-153.514565,0.00027945,7]
[359382840,1745965840513,-153.514565,0.00027945,7]
[359382842,1745965840523,-672.19,0.00027945,2]
[359382843,1745965840532,-1367.8,0.00027945,2]
[359382845,1745965840542,-151.0,0.00027945,7]
[359382847,1745965840551,-400.0,0.00027945,2]
[359382849,1745965840562,-1033.02,0.00027945,2]
[359382851,1745965840572,-743.45,0.00027945,2]
[359382853,1745965840582,-151.0,0.00027945,7]
[359382855,1745965840593,-713.45,0.00027945,2]
[359382857,1745965840603,-3764.84,0.00027945,2]
[359382859,1745965840612,-402.04,0.00027945,2]
[359382861,1745965840623,-3094.27,0.00027945,2]
[359382864,1745965840633,-329.5202196,0.00027945,2]
[359382866,1745965840645,-400.0,0.00027945,2]
[359382868,1745965840655,-417.66,0.00027945,2]
[359382870,1745965840664,-400.0,0.00027945,2]
[359382872,1745965840674,-400.0,0.00027945,2]
[359382874,1745965840683,-774.0,0.00027945,2]
[359382876,1745965840693,-1191.57,0.00027945,2]
[359382878,1745965840703,-948.03,0.00027945,2]
[359382880,1745965840712,-400.0,0.00027945,2]
[359382882,1745965840721,-1212.7,0.00027945,2]
[359382884,1745965840731,-829.03,0.00027945,2]
[359382886,1745965840740,-618.67,0.00027945,2]
[359382888,1745965840750,-2209.47,0.00027945,2]
[359382890,1745965840760,-400.0,0.00027945,2]
[359382891,1745965840769,-779.7,0.00027945,2]
[359382893,1745965840781,-400.0,0.00027945,2]
[359382895,1745965840791,-400.0,0.00027945,2]
[359382897,1745965840801,-574.83,0.00027945,2]
[359382899,1745965840811,-1051.35,0.00027945,2]
[359382901,1745965840821,-2169.26,0.00027945,2]
[359382903,1745965840831,-400.0,0.00027945,2]
[359382905,1745965840841,-400.0,0.00027945,2]
[359382907,1745965840851,-400.0,0.00027945,2]
[359382909,1745965840861,-817.36,0.00027945,2]
[359382911,1745965840870,-962.08,0.00027945,2]
[359382913,1745965840880,-776.26,0.00027945,2]
[359382914,1745965840891,-400.0,0.00027945,2]
[359382916,1745965840900,-400.0,0.00027945,2]
[359382918,1745965840910,-400.0,0.00027945,2]
[359382920,1745965840920,-400.0,0.00027945,2]
[359382922,1745965840929,-2082.61,0.00027945,2]
[359382924,1745965840939,-400.0,0.00027945,2]
[359382926,1745965840948,-400.0,0.00027945,2]
[359382928,1745965840958,-1118.47,0.00027945,2]
[359382930,1745965840968,-2991.06,0.00027945,2]
[359382931,1745965840977,-2334.65,0.00027945,2]
[359382933,1745965840987,-400.0,0.00027945,2]